fUST/lending_fUST_20250705
["ID","MTS","AMOUNT","RATE_DAILY","PERIOD"]
[369651597,1751676647085,-500.0,0.00022473,2]
[369651600,1751676647098,-500.0,0.00022473,2]
[369651602,1751676647107,-500.0,0.00022473,2]
[369651604,1751676647116,-500.0,0.00022473,2]
[369651606,1751676647125,-500.0,0.00022473,2]
[369651608,1751676647134,-150.0,0.00022473,2]
[369651610,1751676647144,-200.0,0.00022473,2]
[369651612,1751676647155,-500.0,0.00022473,2]
[369651614,1751676647164,-200.0,0.0002248,5]
[369651616,1751676647174,-151.0,0.0002248,5]
[369651618,1751676647183,-151.0,0.0002248,5]
[369651620,1751676647192,-151.0,0.0002248,5]
[369651622,1751676647201,-151.0,0.0002248,5]
[369651624,1751676647212,-151.0,0.0002248,5]
[369651626,1751676647220,-151.0,0.0002248,5]
[369651628,1751676647231,-151.0,0.0002248,5]
[369651630,1751676647240,-151.0,0.0002248,5]
[369651632,1751676647250,-151.0,0.0002248,5]
[369651635,1751676647260,-171.503814,0.0002248,5]
[369651637,1751676647270,-3267.65,0.0002248,10]
[369651639,1751676647279,-524.86301716,0.00022489,10]
[369651641,1751676647289,-500.0,0.00022489,10]
[369651643,1751676647298,-500.0,0.00022489,10]
[369651645,1751676647307,-61.88976256,0.00022489,10]
[369651647,1751676647320,-438.11023744,0.00022489,10]
[369651649,1751676647329,-230.54231564,0.00022489,2]
[369651651,1751676647338,-922.16926257,0.00022489,2]
[369651653,1751676647347,-1049.28070019,0.00022489,2]
[369651655,1751676647360,-1025.60014059,0.00022489,2]
[369651657,1751676647370,-371.60886009,0.00022489,2]
[369651659,1751676647379,-172.42040049,0.00022489,2]
[369651682,1751677755065,160.753535,0.00013699,2]
[369651706,1751677832737,-215.11345689,0.00018103,2]
[369651708,1751677832748,-55.21761106,0.000189,2]
[369651710,1751677832759,-1376.85495839,0.000189,2]
[369651712,1751677832769,-131.91296537,0.00019281,2]
[369651719,1751677832826,-328.08703463,0.00019281,2]
[369651720,1751677832835,-460.0,0.00019281,2]
[369651722,1751677832845,-460.0,0.00019281,2]
[369651724,1751677832854,-3516.25664978,0.00019282,2]
[369651726,1751677832863,-5763.55789104,0.00019282,2]
[369651727,1751677832872,-8291.22383974,0.00019282,2]
[369651728,1751677832882,-1486.43544037,0.00019282,2]
[369651730,1751677832891,-3068.53797237,0.00019282,2]
[369651740,1751677832980,-272.59728872,0.00019282,2]
[369651742,1751677832990,-150.0,0.000195,2]
[369651744,1751677833000,-460.0,0.00019555,2]
[369651746,1751677833009,-454.56,0.00019555,2]
[369651748,1751677833019,-460.0,0.00019829,2]
[369651750,1751677833028,-156.42777555,0.00020196,2]
[369651752,1751677833038,-268.654,0.00020296,2]
[369651754,1751677833047,-460.0,0.00020296,2]
[369651756,1751677833057,-491.36,0.00020296,2]
[369651758,1751677833067,-460.0,0.00020296,2]
[369651760,1751677833077,-369.81789346,0.00020296,2]
[369651762,1751677833087,-460.0,0.00020296,2]
[369651764,1751677833097,-460.0,0.00020296,2]
[369651766,1751677833106,-460.0,0.0002057,2]
[369651768,1751677833116,-460.0,0.0002057,2]
[369651770,1751677833126,-460.0,0.0002057,2]
[369651772,1751677833136,-460.0,0.00020792,2]
[369651774,1751677833145,-210.5832833,0.00020792,2]
[369651776,1751677833155,-460.0,0.00020792,2]
[369651778,1751677833165,-460.0,0.00020792,2]
[369651780,1751677833176,-319.14409483,0.00020792,2]
[369651782,1751677833186,-460.0,0.00020844,2]
[369651784,1751677833195,-460.0,0.00020844,2]
[369651785,1751677833204,-460.0,0.00020844,2]
[369651788,1751677833215,-156.42777555,0.00020883,2]
[369651789,1751677833224,-207.75168902,0.000209,4]
[369651792,1751677833233,-460.0,0.00021066,2]
[369651794,1751677833243,-158.4,0.00021066,2]
[369651795,1751677833253,-207.75168897,0.00021111,4]
[369651796,1751677833262,-460.0,0.00021118,2]
[369651797,1751677833272,-460.0,0.00021118,2]
[369651798,1751677833282,-460.0,0.00021118,2]
[369651799,1751677833291,-207.75168897,0.00021321,5]
[369651800,1751677833301,-207.4,0.00021336,2]
[369651801,1751677833310,-460.0,0.00021364,2]
[369651802,1751677833319,-1000.0,0.00021364,2]
[369651803,1751677833328,-460.0,0.00021364,2]
[369651804,1751677833342,-460.0,0.00021364,2]
[369651805,1751677833351,-460.0,0.00021364,2]
[369651806,1751677833360,-460.0,0.00021364,2]
[369651807,1751677833370,-508.13518561,0.00021364,2]
[369651808,1751677833380,-460.0,0.00021364,2]
[369651809,1751677833390,-460.0,0.00021364,2]
[369651810,1751677833399,-500.0,0.00021364,2]
[369651811,1751677833408,-168.99,0.00021364,2]
[369651812,1751677833417,-460.0,0.00021364,2]
[369651813,1751677833427,-460.0,0.00021364,2]
[369651814,1751677833436,-460.0,0.00021364,2]
[369651815,1751677833446,-460.0,0.00021364,2]
[369651816,1751677833456,-460.0,0.00021364,2]
[369651817,1751677833465,-460.0,0.00021364,2]
[369651818,1751677833475,-298.28966662,0.00021364,2]
[369651819,1751677833484,-460.0,0.00021392,2]
[369651820,1751677833493,-460.0,0.00021392,2]
[369651821,1751677833503,-232.73,0.00021392,2]
[369651822,1751677833512,-406.0,0.00021487,2]
[369651823,1751677833522,-207.75168897,0.00021532,5]
[369651824,1751677833531,-156.42777555,0.00021571,2]
[369651825,1751677833540,-1000.0,0.00021638,2]
[369651826,1751677833549,-460.0,0.00021638,2]
[369651827,1751677833558,-460.0,0.00021638,2]
[369651828,1751677833567,-393.42824027,0.00021638,2]
[369651829,1751677833576,-460.0,0.00021638,2]
[369651830,1751677833586,-460.0,0.00021638,2]
[369651831,1751677833596,-185.63,0.00021638,2]
[369651832,1751677833605,-1160.3,0.00021654,2]
[369651833,1751677833614,-460.0,0.00021666,2]
[369651834,1751677833624,-460.0,0.00021666,2]
[369651835,1751677833634,-306.0,0.00021671,2]
[369651836,1751677833644,-207.75168897,0.00021742,5]
[369651837,1751677833653,-389.88828331,0.00021754,2]
[369651838,1751677833667,-1160.3,0.00021754,2]
[369651839,1751677833682,-160.0,0.00021765,2]
[369651840,1751677833691,-837.48520791,0.00021766,2]
[369651841,1751677833700,-304.19351576,0.00021778,2]
[369651883,1751677838568,-155.80648424,0.00021778,2]
[369651885,1751677838577,-460.0,0.00021778,2]
[369651887,1751677838587,-524.86301716,0.00021789,10]
[369651889,1751677838596,-1411.86111169,0.00021789,10]
[369651893,1751677838624,-500.0,0.00021789,10]
[369651895,1751677838636,-1464.71888831,0.00021789,10]
[369651897,1751677838645,-2813.81,0.00021789,10]
[369651898,1751677838655,-2344.85,0.00021789,10]
[369651899,1751677838664,-2250.92746758,0.0002179,3]
[369651901,1751677838675,-99.08253242,0.0002179,3]
[369651903,1751677838685,-1175.0,0.0002179,3]
[369651905,1751677838694,-122.91746758,0.0002179,3]
[369651907,1751677838705,-464.58253242,0.0002179,3]
[369651909,1751677838714,-293.75,0.0002179,3]
[369651911,1751677838724,-881.28,0.0002179,3]
[369651913,1751677838733,-627.45830064,0.00021793,10]
[369651916,1751677838751,-772.10094707,0.00021793,10]
[369651918,1751677838763,-554.48075229,0.00021793,10]
[369651920,1751677838772,-172.67229731,0.00021802,2]
[369651922,1751677838781,-500.0,0.00021802,2]
[369651924,1751677838791,-444.92020818,0.00021802,2]
[369651926,1751677838800,-232.04747697,0.00021802,2]
[369651928,1751677838809,-500.0,0.00021802,2]
[369651930,1751677838818,-217.84972711,0.00021802,2]
[369651932,1751677838827,-500.0,0.00021802,2]
[369651934,1751677838836,-255.24873344,0.00021802,2]
[369651936,1751677838845,-500.0,0.00021802,2]
[369651938,1751677838854,-500.0,0.00021802,2]
[369651940,1751677838864,-500.0,0.00021802,2]
[369651942,1751677838873,-500.0,0.00021802,2]
[369651944,1751677838882,-500.0,0.00021802,2]
[369651946,1751677838891,-500.0,0.00021802,2]
[369651962,1751677839032,-500.0,0.00021802,2]
[369651964,1751677839042,-500.0,0.00021802,2]
[369651966,1751677839051,-500.0,0.00021802,2]
[369651968,1751677839061,-413.95120474,0.00021802,2]
[369651970,1751677839070,-500.0,0.00021802,2]
[369651972,1751677839080,-500.0,0.00021802,2]
[369651974,1751677839089,-586.55000009,0.00021802,2]
[369651976,1751677839099,-500.0,0.00021802,2]
[369651978,1751677839107,-202.02712322,0.00021802,2]
[369651979,1751677839116,-500.0,0.00021802,2]
[369651980,1751677839125,-88.94378556,0.00021802,2]
[369651982,1751677839138,-411.05621444,0.00021802,2]
[369651983,1751677839148,-500.0,0.00021802,2]
[369651984,1751677839156,-500.0,0.00021802,2]
[369651985,1751677839165,-624.0072928,0.00021802,2]
[369651986,1751677839176,-500.0,0.00021802,2]
[369651987,1751677839185,-500.0,0.00021802,2]
[369651988,1751677839194,-500.0,0.00021802,2]
[369651989,1751677839203,-274.068862,0.00021802,2]
[369651990,1751677839212,-500.0,0.00021802,2]
[369651991,1751677839221,-500.0,0.00021802,2]
[369651992,1751677839229,-500.0,0.00021802,2]
[369651993,1751677839238,-500.0,0.00021802,2]
[369651994,1751677839247,-500.0,0.00021802,2]
[369651995,1751677839256,-500.0,0.00021802,2]
[369651996,1751677839265,-500.0,0.00021802,2]
[369651997,1751677839275,-444.38014658,0.00021802,2]
[369651998,1751677839284,-298.23286119,0.00021802,2]
[369651999,1751677839294,-500.0,0.00021802,2]
[369652000,1751677839303,-500.0,0.00021802,2]
[369652001,1751677839311,-500.0,0.00021802,2]
[369652002,1751677839321,-500.0,0.00021802,2]
[369652003,1751677839330,-500.0,0.00021802,2]
[369652004,1751677839339,-500.0,0.00021802,2]
[369652005,1751677839348,-500.0,0.00021802,2]
[369652006,1751677839356,-500.0,0.00021802,2]
[369652007,1751677839365,-500.0,0.00021802,2]
[369652008,1751677839374,-500.0,0.00021802,2]
[369652009,1751677839383,-500.0,0.00021802,2]
[369652010,1751677839392,-500.0,0.00021802,2]
[369652011,1751677839400,-500.0,0.00021802,2]
[369652012,1751677839409,-500.0,0.00021802,2]
[369652013,1751677839418,-500.0,0.00021802,2]
[369652014,1751677839427,-500.0,0.00021802,2]
[369652015,1751677839436,-500.0,0.00021802,2]
[369652016,1751677839445,-500.0,0.00021802,2]
[369652017,1751677839454,-500.0,0.00021802,2]
[369652018,1751677839462,-500.0,0.00021802,2]
[369652019,1751677839471,-500.0,0.00021802,2]
[369652020,1751677839481,-500.0,0.00021802,2]
[369652021,1751677839489,-500.0,0.00021802,2]
[369652022,1751677839498,-500.0,0.00021802,2]
[369652023,1751677839507,-500.0,0.00021802,2]
[369652024,1751677839516,-500.0,0.00021802,2]
[369652025,1751677839526,-500.0,0.00021802,2]
[369652026,1751677839535,-500.0,0.00021802,2]
[369652027,1751677839544,-500.0,0.00021802,2]
[369652028,1751677839553,-500.0,0.00021802,2]
[369652029,1751677839562,-500.0,0.00021802,2]
[369652030,1751677839572,-500.0,0.00021802,2]
[369652031,1751677839581,-500.0,0.00021802,2]
[369652032,1751677839590,-500.0,0.00021802,2]
[369652033,1751677839600,-220.21778002,0.00021802,2]
[369652034,1751677839608,-500.0,0.00021802,2]
[369652035,1751677839618,-500.0,0.00021802,2]
[369652036,1751677839627,-500.0,0.00021802,2]
[369652037,1751677839636,-500.0,0.00021802,2]
[369652038,1751677839646,-500.0,0.00021802,2]
[369652039,1751677839655,-396041.734564,0.00021803,4]
[369652080,1751677840912,-416.65490336,0.00021803,4]
[369652082,1751677840924,-340.365,0.00021803,4]
[369652085,1751677840939,-933.24475225,0.00021803,4]
[369652087,1751677840951,-774.77,0.00021803,4]
[369652089,1751677840962,-3415.96290794,0.00021803,4]
[369652092,1751677840973,-1549.31308829,0.00021803,4]
[369652396,1751677843836,-641.22083784,0.00021803,4]
[369652397,1751677843847,-14104.03199183,0.00021803,4]
[369652398,1751677843858,-2712.5024788,0.00021803,4]
[369652399,1751677843869,-22425.51733843,0.00021803,4]
[369652400,1751677843880,-2199.99646509,0.00021803,4]
[369652401,1751677843890,-13949.8879743,0.00021803,4]
[369652402,1751677843901,-542.075,0.00021803,4]
[369652403,1751677843912,-275.5607214,0.00021803,4]
[369652404,1751677843923,-5840.05615086,0.00021803,4]
[369652405,1751677843935,-120012.66196561,0.00021803,4]
[369652406,1751677843944,-96658.41393985,0.00021804,2]
[369652407,1751677843954,-1160.3,0.00021854,2]
[369652408,1751677843963,-460.0,0.00021871,2]
[369652409,1751677843973,-460.0,0.00021871,2]
[369652410,1751677843981,-309.36995602,0.00021873,2]
[369652411,1751677843990,-568.7759122,0.00021873,2]
[369652412,1751677844000,-500.0,0.00021873,2]
[369652413,1751677844010,-500.0,0.00021873,2]
[369652414,1751677844019,-500.47308793,0.00021873,2]
[369652415,1751677844028,-500.0,0.00021873,2]
[369652416,1751677844038,-500.0,0.00021873,2]
[369652417,1751677844047,-500.0,0.00021873,2]
[369652418,1751677844056,-500.0,0.00021873,2]
[369652419,1751677844071,-500.0,0.00021873,2]
[369652421,1751677844080,-286.97115033,0.00021873,2]
[369652423,1751677844090,-500.0,0.00021873,2]
[369652425,1751677844100,-500.0,0.00021873,2]
[369652427,1751677844109,-500.0,0.00021873,2]
[369652429,1751677844118,-500.0,0.00021873,2]
[369652431,1751677844127,-500.0,0.00021873,2]
[369652433,1751677844137,-260.11731161,0.00021873,2]
[369652435,1751677844146,-638.58587955,0.00021873,2]
[369652437,1751677844155,-300.0,0.00021874,2]
[369652439,1751677844164,-327395.67807753,0.000219,2]
[369652441,1751677844175,-389.88828329,0.00021904,2]
[369652443,1751677844186,-545.24,0.00021912,2]
[369652445,1751677844195,-303.72,0.00021912,2]
[369652447,1751677844204,-500.0,0.00021917,2]
[369652449,1751677844213,-500.0,0.00021917,2]
[369652451,1751677844221,-500.0,0.00021917,2]
[369652453,1751677844231,-500.0,0.00021917,2]
[369652455,1751677844241,-436.44,0.00021917,2]
[369652457,1751677844250,-265.0,0.00021918,3]
[369652459,1751677844260,-460.0,0.0002194,2]
[369652461,1751677844270,-460.0,0.0002194,2]
[369652463,1751677844279,-1160.3,0.00021954,6]
[369652465,1751677844288,-231.451058,0.0002204,4]
[369652467,1751677844298,-390.65,0.00022052,2]
[369652469,1751677844308,-389.88828329,0.00022054,2]
[369652471,1751677844317,-1160.3,0.00022054,5]
[369652473,1751677844327,-168.0,0.00022093,2]
[369652475,1751677844336,-230.40116161,0.0002213,2]
[369652477,1751677844345,-151.0,0.00022131,6]
[369652479,1751677844355,-460.0,0.00022145,2]
[369652481,1751677844364,-1160.3,0.00022154,3]
[369652483,1751677844374,-500.0,0.00022186,2]
[369652485,1751677844383,-389.88828329,0.00022204,2]
[369652487,1751677844393,-460.0,0.00022213,2]
[369652489,1751677844402,-460.0,0.00022213,2]
[369652491,1751677844411,-1160.3,0.00022254,2]
[369652493,1751677844420,-156.42777555,0.00022258,2]
[369652495,1751677844429,-1473.09772641,0.00022275,2]
[369652497,1751677844438,-389.88828329,0.00022354,2]
[369652499,1751677844448,-1160.3,0.00022354,2]
[369652501,1751677844457,-168.0,0.00022363,2]
[369652503,1751677844465,-151.0,0.000224,7]
[369652505,1751677844475,-2000.0,0.000224,2]
[369652508,1751677844484,-151.0,0.000224,10]
[369652510,1751677844494,-151.0,0.000224,9]
[369652512,1751677844503,-190.438241,0.000224,7]
[369652514,1751677844513,-190.438241,0.000224,7]
[369652516,1751677844522,-152.2,0.000224,31]
[369652518,1751677844533,-152.2,0.000224,31]
[369652520,1751677844542,-152.2,0.000224,31]
[369652522,1751677844551,-152.2,0.000224,31]
[369652524,1751677844561,-152.2,0.000224,31]
[369652526,1751677844570,-152.2,0.000224,31]
[369652528,1751677844579,-152.2,0.000224,31]
[369652530,1751677844588,-621.67496497,0.00022421,2]
[369652532,1751677844597,-171.0,0.00022444,3]
[369652534,1751677844606,-151.0,0.00022444,3]
[369652536,1751677844616,-171.0,0.00022444,3]
[369652538,1751677844625,-151.0,0.00022444,3]
[369652539,1751677844634,-171.0,0.00022444,3]
[369652541,1751677844647,-151.0,0.00022444,3]
[369652543,1751677844656,-171.0,0.00022444,3]
[369652545,1751677844665,-151.0,0.00022444,3]
[369652547,1751677844674,-171.0,0.00022444,3]
[369652549,1751677844683,-151.0,0.00022444,3]
[369652551,1751677844692,-176.74032422,0.00022444,3]
[369652553,1751677844701,-151.0,0.00022444,3]
[369652555,1751677844710,-151.0,0.00022444,3]
[369652557,1751677844719,-151.0,0.00022444,3]
[369652559,1751677844728,-151.0,0.00022444,3]
[369652561,1751677844737,-151.0,0.00022444,3]
[369652563,1751677844748,-151.0,0.00022444,3]
[369652565,1751677844757,-151.0,0.00022444,3]
[369652567,1751677844766,-151.0,0.00022444,3]
[369652569,1751677844775,-151.0,0.00022444,3]
[369652571,1751677844784,-151.0,0.00022444,3]
[369652574,1751677844794,-151.0,0.00022444,3]
[369652575,1751677844803,-151.0,0.00022444,3]
[369652577,1751677844811,-151.0,0.00022444,3]
[369652579,1751677844820,-151.0,0.00022444,3]
[369652581,1751677844829,-151.0,0.00022444,3]
[369652583,1751677844838,-151.0,0.00022444,3]
[369652585,1751677844848,-151.0,0.00022444,3]
[369652587,1751677844857,-151.0,0.00022444,3]
[369652589,1751677844866,-151.0,0.00022444,3]
[369652591,1751677844876,-151.0,0.00022444,3]
[369652593,1751677844885,-151.0,0.00022444,3]
[369652595,1751677844894,-151.0,0.00022444,3]
[369652597,1751677844903,-151.0,0.00022444,3]
[369652599,1751677844912,-151.0,0.00022444,3]
[369652601,1751677844922,-151.0,0.00022444,3]
[369652603,1751677844932,-151.0,0.00022444,3]
[369652606,1751677844941,-151.0,0.00022444,3]
[369652607,1751677844952,-151.0,0.00022444,3]
[369652609,1751677844961,-151.0,0.00022444,3]
[369652611,1751677844970,-151.0,0.00022444,3]
[369652613,1751677844979,-151.0,0.00022444,3]
[369652615,1751677844989,-151.0,0.00022444,3]
[369652618,1751677844998,-151.0,0.00022444,3]
[369652619,1751677845007,-151.0,0.00022444,3]
[369652622,1751677845016,-151.0,0.00022444,3]
[369652624,1751677845026,-151.0,0.00022444,3]
[369652626,1751677845035,-151.0,0.00022444,3]
[369652628,1751677845044,-151.0,0.00022444,3]
[369652630,1751677845054,-151.0,0.00022444,3]
[369652632,1751677845063,-151.0,0.00022444,3]
[369652634,1751677845074,-151.0,0.00022444,3]
[369652636,1751677845083,-151.0,0.00022444,3]
[369652638,1751677845092,-151.0,0.00022444,3]
[369652640,1751677845101,-151.0,0.00022444,3]
[369652642,1751677845111,-151.0,0.00022444,3]
[369652644,1751677845120,-151.0,0.00022444,3]
[369652646,1751677845129,-151.0,0.00022444,3]
[369652648,1751677845138,-151.0,0.00022444,3]
[369652650,1751677845148,-151.0,0.00022444,3]
[369652652,1751677845157,-151.0,0.00022444,3]
[369652654,1751677845166,-151.0,0.00022444,3]
[369652656,1751677845177,-151.0,0.00022444,3]
[369652658,1751677845187,-151.0,0.00022444,3]
[369652660,1751677845197,-86.72729315,0.00022444,3]
[369652818,1751677846719,-692.31,0.00021873,2]
[369652821,1751677846732,-2257.66257339,0.00021873,2]
[369652826,1751677846774,-725.27306679,0.00021873,2]
[369652829,1751677846785,-1025.62853026,0.00021873,2]
[369652958,1751678951163,160.753535,0.00013699,2]
[369652989,1751679031954,-156.65427691,0.00016047,2]
[369652991,1751679031965,-430.33319039,0.00016209,2]
[369652994,1751679032057,-11696.83523655,0.00016209,2]
[369652995,1751679032069,-251.91629561,0.00016209,2]
[369652996,1751679032080,-858.72735909,0.00016209,2]
[369652997,1751679032091,-1004.25000015,0.00016209,2]
[369652998,1751679032102,-61954.81663711,0.00016209,2]
[369653000,1751679032111,-2456.5961884,0.00017,2]
[369653002,1751679032121,-954.7150463,0.000189,2]
[369653004,1751679032130,-199.89421306,0.000189,2]
[369653006,1751679032139,-462.43105589,0.00019178,2]
[369653007,1751679032148,-199.89421296,0.00019268,2]
[369653008,1751679032158,-460.0,0.00019281,2]
[369653009,1751679032168,-602.58,0.00019281,2]
[369653011,1751679032177,-460.0,0.00019281,2]
[369653013,1751679032187,-460.0,0.00019281,2]
[369653014,1751679032196,-460.0,0.00019281,2]
[369653015,1751679032205,-432.20991152,0.00019281,2]
[369653026,1751679038016,-521.87362359,0.00019178,2]
[369653027,1751679038028,-464.82737924,0.00019178,2]
[369653028,1751679038039,-27.79008848,0.00019281,2]
[369653029,1751679038049,-460.0,0.00019281,2]
[369653030,1751679038060,-558.01,0.00019281,2]
[369653031,1751679038070,-460.0,0.00019281,2]
[369653032,1751679038082,-460.0,0.00019281,2]
[369653033,1751679038093,-460.0,0.00019281,2]
[369653034,1751679038104,-460.0,0.00019281,2]
[369653036,1751679038115,-460.0,0.00019281,2]
[369653037,1751679038126,-462.45009223,0.00019281,2]
[369653038,1751679038136,-462.38885723,0.00019281,2]
[369653039,1751679038147,-13844.20998392,0.00019281,2]
[369653040,1751679038157,-215.11345689,0.0001955,2]
[369653041,1751679038167,-837.48520791,0.0001955,2]
[369653042,1751679038177,-230.40116161,0.0001955,2]
[369653043,1751679038188,-460.0,0.0001955,2]
[369653044,1751679038200,-463.07441709,0.0001955,2]
[369653045,1751679038211,-160.0,0.0001955,2]
[369653046,1751679038222,-847.91215827,0.0001955,2]
[369653047,1751679038233,-319.76,0.00019555,2]
[369653048,1751679038244,-326.94,0.00019555,2]
[369653049,1751679038256,-460.0,0.00019555,2]
[369653051,1751679038267,-162.05,0.00019555,2]
[369653053,1751679038278,-327.48,0.00019555,2]
[369653054,1751679038289,-347.59,0.00019555,2]
[369653055,1751679038300,-150.0,0.000196,2]
[369653056,1751679038312,-199.89421296,0.00019637,2]
[369653057,1751679038323,-168.12749167,0.00019728,2]
[369653058,1751679038335,-256.02668011,0.00019824,2]
[369653059,1751679038346,-460.0,0.00019828,2]
[369653060,1751679038358,-460.0,0.00019828,2]
[369653061,1751679038369,-460.0,0.00019828,2]
[369653062,1751679038380,-460.0,0.00019828,2]
[369653063,1751679038390,-460.0,0.00019828,2]
[369653065,1751679038400,-460.0,0.00019828,2]
[369653067,1751679038410,-591.29,0.00019828,2]
[369653068,1751679038419,-460.0,0.00019828,2]
[369653069,1751679038428,-460.0,0.00019828,2]
[369653070,1751679038439,-573.39,0.00019828,2]
[369653071,1751679038450,-500.59666502,0.00019828,2]
[369653072,1751679038462,-504.77385182,0.00019828,2]
[369653074,1751679038474,-460.0,0.00019828,2]
[369653076,1751679038485,-275.30449447,0.00019828,2]
[369653077,1751679038495,-460.0,0.00019828,2]
[369653078,1751679038507,-500.0,0.00019828,2]
[369653079,1751679038517,-404.64910058,0.00019828,2]
[369653080,1751679038526,-460.0,0.00019828,2]
[369653081,1751679038537,-525.84,0.00019828,2]
[369653082,1751679038547,-460.0,0.00019828,2]
[369653084,1751679038558,-460.0,0.00019828,2]
[369653086,1751679038568,-505.53898026,0.00019828,2]
[369653087,1751679038580,-460.0,0.00019828,2]
[369653088,1751679038591,-460.0,0.00019828,2]
[369653089,1751679038600,-460.0,0.00019828,2]
[369653090,1751679038610,-460.0,0.00019828,2]
[369653091,1751679038621,-460.0,0.00019828,2]
[369653092,1751679038630,-460.0,0.00019828,2]
[369653093,1751679038640,-460.0,0.00019828,2]
[369653094,1751679038651,-460.0,0.00019828,2]
[369653095,1751679038661,-460.0,0.00019828,2]
[369653096,1751679038672,-581.88,0.00019828,2]
[369653097,1751679038682,-460.0,0.00019828,2]
[369653098,1751679038693,-460.0,0.00019828,2]
[369653099,1751679038704,-460.0,0.00019828,2]
[369653100,1751679038715,-460.0,0.00019828,2]
[369653101,1751679038726,-585.07,0.00019828,2]
[369653102,1751679038736,-460.0,0.00019828,2]
[369653103,1751679038746,-460.57556193,0.00019828,2]
[369653104,1751679038756,-460.0,0.00019828,2]
[369653105,1751679038767,-460.0,0.00019828,2]
[369653106,1751679038781,-460.0,0.00019828,2]
[369653107,1751679038791,-460.0,0.00019828,2]
[369653108,1751679038802,-460.0,0.00019828,2]
[369653109,1751679038811,-460.0,0.00019828,2]
[369653110,1751679038823,-460.0,0.00019828,2]
[369653111,1751679038833,-460.0,0.00019828,2]
[369653112,1751679038843,-460.0,0.00019828,2]
[369653113,1751679038855,-460.0,0.00019828,2]
[369653114,1751679038867,-460.0,0.00019828,2]
[369653115,1751679038877,-460.0,0.00019828,2]
[369653116,1751679038888,-511.2,0.00019828,2]
[369653117,1751679038898,-188.21439731,0.00019828,2]
[369653118,1751679038908,-460.0,0.00019828,2]
[369653119,1751679038918,-460.0,0.00019828,2]
[369653120,1751679038929,-460.9834125,0.00019828,2]
[369653121,1751679038940,-461.07179154,0.00019828,2]
[369653122,1751679038950,-460.0,0.00019829,2]
[369653123,1751679038960,-199.89421296,0.00020005,2]
[369653124,1751679038972,-500.0,0.00020099,2]
[369653125,1751679038982,-500.0,0.00020099,2]
[369653126,1751679038993,-500.0,0.00020099,2]
[369653127,1751679039003,-630.5560773,0.00020099,2]
[369653128,1751679039013,-500.0,0.00020099,2]
[369653129,1751679039023,-500.0,0.00020099,2]
[369653130,1751679039034,-500.0,0.00020099,2]
[369653131,1751679039044,-500.0,0.00020099,2]
[369653132,1751679039055,-500.0,0.00020099,2]
[369653133,1751679039065,-500.0,0.00020099,2]
[369653134,1751679039076,-500.0,0.00020099,2]
[369653135,1751679039086,-188.62146959,0.00020099,2]
[369653136,1751679039096,-500.0,0.00020099,2]
[369653137,1751679039107,-500.0,0.00020099,2]
[369653138,1751679039118,-500.0,0.00020099,2]
[369653139,1751679039128,-500.0,0.00020099,2]
[369653140,1751679039138,-500.0,0.00020099,2]
[369653141,1751679039149,-500.0,0.00020099,2]